bitfinex/quotes_ETHUSD_20250605
["timestamp","ask_amount","ask_price","bid_price","bid_amount"]
[1749159813994,8.348,2442.3,2441.9,4.09507576]
[1749159814156,8.348,2442.3,2441.9,4.09510215]
[1749159814356,8.348,2442.3,2441.2,1.6051]
[1749159814357,1.67814088,2442.2,2441.2,1.6051]
[1749159814586,1.62814088,2442.2,2441.4,4.09601048]
[1749159814896,1.62814088,2442.2,2441.8,4.09533178]
[1749159815068,0.55,2442.6,2441.9,4.09510374]
[1749159815271,15.22323486,2442.5,2442.0,4.09490931]
[1749159815477,15.22323486,2442.5,2441.7,4.09550722]
[1749159815478,8.341,2442.4,2441.7,4.09550722]
[1749159815670,4.09457313,2442.3,2441.8,4.09526656]
[1749159815992,4.09457313,2442.3,2440.9,4.20950635]
[1749159815993,2.1067,2442.2,2441.0,4.09668168]
[1749159816169,2.1067,2442.2,2440.9,0.1127522]
[1749159816563,4.09534662,2441.8,2440.9,0.1127522]
[1749159816762,19.971,2441.7,2441.3,4.09608496]
[1749159817073,8.33,2441.6,2441.2,4.0962585]
[1749159817454,8.33,2441.6,2440.9,0.1127522]
[1749159817455,0.55,2441.4,2440.9,0.1127522]
[1749159817690,4.09668168,2441.0,2440.9,0.1127522]
[1749159817891,15.62234985,2441.0,2440.9,0.1127522]
[1749159818097,16.17234985,2441.0,2440.9,0.1127522]
[1749159818399,2.787,2441.0,2440.9,0.1127522]
[1749159818567,2.787,2441.0,2440.9,4.20960172]
[1749159818767,2.787,2441.2,2440.9,0.1127522]
[1749159819092,0.55,2442.1,2442.0,4.09500409]
[1749159819093,2.787,2442.1,2442.0,4.09500409]
[1749159819292,1.6358,2442.4,2442.3,4.09450108]
[1749159819293,2.787,2442.4,2442.3,4.09450108]
[1749159819499,4.09238012,2443.6,2442.2,4.09464038]
[1749159819500,1.6358,2443.1,2442.9,4.09338279]
[1749159819699,2.787,2443.0,2442.5,4.09413772]
[1749159819901,2.787,2443.0,2442.9,4.09341119]
[1749159820074,11.14,2443.0,2442.8,4.09358759]
[1749159820401,10.4838,2443.1,2442.1,1.5819]
[1749159820402,1.6358,2443.1,2443.0,4.09332787]
[1749159820585,19.987,2443.1,2443.0,4.09332787]
[1749159820898,19.987,2443.1,2442.8,4.0935833]
[1749159820899,19.984,2443.1,2442.9,4.09340398]
[1749159821308,11.132,2443.0,2442.6,4.09388867]
[1749159821512,11.132,2443.0,2442.7,4.09379282]
[1749159822074,11.132,2443.0,2442.6,4.09391561]
[1749159822379,11.132,2443.0,2442.5,4.09407626]
[1749159822582,11.132,2443.0,2442.4,4.09429086]
[1749159822770,15.22532931,2443.0,2442.5,4.09407836]
[1749159822965,11.132,2443.0,2442.5,4.09407836]
[1749159823590,15.22533933,2443.0,2442.5,4.09407836]
[1749159823787,11.132,2443.0,2442.5,4.09407836]
[1749159823963,11.132,2443.0,2442.6,4.09399011]
[1749159824167,11.132,2443.0,2442.1,4.09480632]
[1749159824378,11.132,2443.0,2442.5,4.0940865]
[1749159825008,11.132,2443.0,2442.6,4.09395563]
[1749159825209,8.313,2442.9,2442.6,4.09395563]
[1749159825498,8.313,2442.9,2442.7,4.09382286]
[1749159825894,8.313,2442.9,2442.6,4.09392408]
[1749159826662,2.787,2443.0,2442.7,4.09378281]
[1749159826888,2.787,2443.0,2442.3,4.09444579]
[1749159826889,8.292,2442.9,2442.6,4.09387584]
[1749159827125,8.292,2442.9,2442.7,4.0937994]
[1749159827333,8.292,2442.9,2442.8,4.093663]
[1749159827742,8.292,2442.9,2442.5,4.09400746]
[1749159827914,8.292,2442.9,2442.7,4.09373613]
[1749159828330,8.292,2442.9,2442.6,4.09392803]
[1749159829350,8.292,2442.9,2442.8,4.093663]
[1749159829843,8.292,2442.9,2442.3,4.09448135]
[1749159830041,8.292,2442.9,2442.0,20.50449621]
[1749159830215,8.292,2442.9,2442.6,4.09390283]
[1749159830607,8.292,2442.9,2442.8,4.093663]
[1749159831439,8.292,2442.9,2442.7,4.09367111]
[1749159831637,8.292,2442.9,2442.8,4.093663]
[1749159832514,11.024,2442.9,2442.8,4.093663]
[1749159833529,8.848,2443.1,2443.0,4.09332787]
[1749159833729,19.771,2443.1,2443.0,4.09332787]
[1749159834612,1.94343801,2443.5,2442.5,4.09411931]
[1749159834613,1.94343801,2443.5,2443.2,4.09290338]
[1749159834864,10.912,2443.4,2443.2,4.09290338]
[1749159838122,10.912,2443.4,2443.1,4.09312533]
[1749159838351,10.912,2443.4,2443.2,4.09291657]
[1749159838557,12.1975438,2443.4,2443.2,4.09291657]
[1749159839062,3.9805438,2443.4,2443.2,4.09290964]
[1749159839237,8.16,2443.3,2443.2,4.09290964]
[1749159839828,8.152,2443.3,2443.2,4.0929117]
[1749159840266,10.84,2443.3,2442.8,4.09362768]
[1749159840556,2.695,2443.3,2443.2,4.09299279]
[1749159840720,10.836,2443.3,2443.1,4.0930737]
[1749159840918,11.9605238,2443.3,2443.2,4.09299279]
[1749159841732,11.9465238,2443.3,2443.2,4.09299279]
[1749159841947,11.9465238,2443.3,2443.1,4.09308855]
[1749159842323,11.9465238,2443.3,2443.2,4.09299279]
[1749159842537,0.40923801,2443.5,2442.8,4.09363885]
[1749159842538,0.40923801,2443.5,2443.3,4.09271997]
[1749159842737,10.811,2443.4,2443.3,4.09282527]
[1749159842924,8.847,2443.7,2443.2,4.09293064]
[1749159843124,10.807,2443.6,2442.8,4.093663]
[1749159843336,1.9654,2443.6,2442.8,4.093663]
[1749159843560,2.695,2443.5,2443.4,4.0925346]
[1749159843766,2.695,2443.5,2443.4,4.09254082]
[1749159843767,10.8,2443.5,2443.4,4.09254082]
[1749159843925,2.695,2443.5,2443.4,4.09265777]
[1749159844125,5.69885315,2444.5,2444.0,4.091553]
[1749159844325,2.695,2444.1,2443.4,4.09265777]
[1749159844525,2.695,2444.1,2443.3,1.521]
[1749159844526,10.797,2444.1,2443.3,5.61375343]
[1749159844823,10.797,2444.1,2443.4,4.09262595]
[1749159844824,4.09190357,2443.9,2443.4,4.09262595]
[1749159845068,4.09202051,2443.8,2443.3,4.09270762]
[1749159845280,4.09250787,2443.5,2443.0,4.09322136]
[1749159845431,2.695,2443.4,2443.0,4.09322136]
[1749159845625,6.78767766,2443.4,2443.0,4.09322136]
[1749159845866,6.78767766,2443.4,2443.0,4.0933264]
[1749159846070,4.09292078,2443.3,2442.5,1.6595]
[1749159846256,2.695,2443.4,2442.5,1.6595]
[1749159846257,8.094,2443.2,2442.5,1.6595]
[1749159846464,12.18708055,2443.2,2442.7,4.09367279]
[1749159846773,10.693,2443.1,2443.0,4.09322541]
[1749159847147,10.693,2443.1,2442.9,4.09340459]
[1749159847351,10.693,2443.1,2442.7,4.09378698]
[1749159847547,10.693,2443.1,2442.8,4.09351576]
[1749159847783,10.693,2443.1,2442.6,4.09399819]
[1749159847943,10.693,2443.1,2443.0,4.09332787]
[1749159848842,10.693,2443.1,2442.9,4.0934092]
[1749159849181,10.693,2443.1,2443.0,4.09332787]
[1749159849477,10.693,2443.1,2442.8,4.09361024]
[1749159849975,4.09376234,2442.8,2442.3,4.09443118]
[1749159850272,4.09376234,2442.8,2442.2,4.09460068]
[1749159850273,1.5868,2442.9,2441.7,1.5361]
[1749159850449,1.5868,2442.9,2441.8,4.0953395]
[1749159850650,4.09387512,2442.7,2442.2,4.09457656]
[1749159850856,8.045,2442.6,2442.2,4.09457656]
[1749159851052,12.13909423,2442.6,2442.1,4.09474726]
[1749159851253,12.94359423,2442.6,2442.1,4.09474726]
[1749159851754,12.94359423,2442.6,2442.2,4.09465653]
[1749159852274,12.94362336,2442.6,2442.1,4.09478982]
[1749159852474,12.13912336,2442.6,2442.1,4.09478982]
[1749159852681,1.5868,2442.9,2441.7,5.63152698]
[1749159852879,8.025,2442.5,2441.7,5.63149262]
[1749159853065,2.607,2442.4,2442.1,4.0947795]
[1749159853592,4.07961281,2442.4,2441.6,4.09565621]
[1749159853759,4.09480592,2442.2,2441.7,4.09542294]
[1749159853958,4.09476727,2442.2,2441.7,4.09542294]
[1749159854259,1.22689262,2442.2,2441.2,1.6105]
[1749159854444,8.028,2442.1,2441.2,1.6105]
[1749159854646,4.09558989,2441.7,2440.8,1.6577]
[1749159854858,10.637,2441.6,2441.2,4.0962561]
[1749159855062,10.637,2441.6,2441.2,4.09632546]
[1749159855289,14.7327716,2441.6,2441.1,4.09636551]
[1749159855447,14.7327716,2441.6,2440.8,1.6577]
[1749159855448,12.94152037,2441.7,2440.8,5.75471677]
[1749159855647,10.63,2441.5,2440.8,1.6577]
[1749159855853,10.63,2441.5,2441.0,4.09661069]
[1749159855854,14.72592366,2441.5,2441.0,4.09661069]
[1749159856053,10.63,2441.5,2440.8,1.6577]
[1749159856283,14.72585247,2441.5,2441.0,4.09660136]
[1749159856483,10.63,2441.5,2441.0,4.09668168]
[1749159856687,10.63,2441.5,2440.9,4.20957954]
[1749159856688,14.72587523,2441.5,2440.9,4.20957954]
[1749159856891,10.63,2441.5,2440.9,0.1127522]
[1749159857050,10.63,2441.5,2441.0,4.09668168]
[1749159857250,2.607,2441.5,2441.4,4.09601048]
[1749159857647,11.453,2441.7,2441.6,4.09567496]
[1749159857897,16.869,2441.7,2441.6,20.09567496]
[1749159858249,8.846,2441.7,2441.6,20.09567496]
[1749159858466,2.607,2441.9,2441.4,4.91522585]
[1749159858467,1.5146,2443.0,2441.7,1.5243]
[1749159858697,2.607,2442.9,2442.7,4.09369075]
[1749159858876,8.016,2442.8,2442.7,4.09382167]
[1749159859261,2.607,2442.9,2442.7,4.09382167]
[1749159859478,2.607,2442.9,2442.6,4.09397145]
[1749159859703,8.013,2442.8,2442.6,4.09392414]
[1749159860004,8.013,2442.8,2442.2,4.09459239]
[1749159860300,8.044,2442.7,2442.6,4.09389397]
[1749159860490,2.607,2442.9,2442.6,4.09389397]
[1749159860690,2.607,2442.9,2442.8,4.093663]
[1749159860989,8.848,2443.0,2442.9,4.09349543]
[1749159861807,16.913,2443.0,2442.9,4.09349543]
[1749159862019,8.848,2443.0,2442.9,4.09349543]
[1749159862307,5.67524247,2443.9,2443.3,4.09282527]
[1749159862308,2.607,2443.4,2443.3,4.09282527]
[1749159862609,10.665,2443.4,2443.3,4.09282527]
[1749159862769,0.51424165,2444.2,2443.8,4.09198788]
[1749159862973,0.51424165,2444.2,2443.8,4.09183627]
[1749159862974,8.057,2444.1,2443.8,4.09183627]
[1749159863292,8.053,2444.0,2443.8,4.09183755]
[1749159863602,8.05,2443.9,2443.4,4.09262017]
[1749159863806,8.05,2443.9,2443.8,4.09198788]
[1749159864706,8.04,2443.9,2443.8,4.09198788]
[1749159864891,2.607,2444.3,2443.9,4.09170236]
[1749159865096,2.607,2444.3,2444.0,4.09151643]
[1749159865097,8.033,2444.2,2444.0,4.09151643]
[1749159865709,8.033,2444.2,2443.8,4.0918609]
[1749159865868,8.033,2444.2,2443.9,4.09177538]
[1749159866064,9.50609853,2444.2,2443.9,4.09177538]
[1749159866394,2.607,2444.1,2443.4,1.6521]
[1749159866598,2.607,2444.1,2444.0,4.09165302]
[1749159866809,10.631,2444.1,2444.0,4.09165302]
[1749159866970,1.6031,2444.7,2444.3,4.09112373]
[1749159867281,2.607,2444.6,2444.2,4.09119096]
[1749159867481,2.607,2444.6,2444.3,4.09108551]
[1749159867482,8.019,2444.5,2444.3,4.09108551]
[1749159867990,10.62,2444.4,2444.3,4.09108551]
[1749159868204,10.617,2444.4,2444.3,4.09108551]
[1749159868433,2.607,2444.4,2444.3,4.09108551]
[1749159868726,10.612,2444.4,2444.3,4.09115084]
[1749159869021,2.607,2444.4,2444.3,4.09115084]
[1749159869221,0.6031,2444.7,2444.2,4.09118761]
[1749159869401,10.611,2444.6,2444.2,4.09127935]
[1749159869908,10.611,2444.6,2444.3,4.09106289]
[1749159870082,10.611,2444.6,2444.2,4.09123367]
[1749159870287,10.611,2444.6,2444.3,4.09113654]
[1749159870502,2.606,2444.6,2444.3,4.09113654]
[1749159870830,2.606,2444.6,2443.9,4.09180123]
[1749159870831,7.989,2444.5,2444.2,4.09128631]
[1749159871129,7.989,2444.5,2444.3,4.09114805]
[1749159871491,7.989,2444.5,2444.1,4.09144282]
[1749159871887,6.69674829,2444.6,2443.7,4.09215533]
[1749159871888,7.988,2444.4,2444.2,4.09127007]
[1749159872209,7.988,2444.3,2443.9,4.09182045]
[1749159872402,1.5828,2443.7,2442.4,1.6419]
[1749159872607,1.5828,2443.7,2442.5,4.09406754]
[1749159872608,4.09335992,2443.0,2442.5,4.09406754]
[1749159872821,0.55,2443.5,2442.4,1.6419]
[1749159873002,4.09128645,2444.3,2443.7,4.09204599]
[1749159873202,8.067,2444.2,2444.1,4.09148561]
[1749159873489,8.075,2444.2,2444.1,4.09134323]
[1749159873688,2.606,2444.3,2444.2,4.09131822]
[1749159873926,10.681,2444.3,2444.2,4.09131822]
[1749159875129,10.667,2444.3,2444.2,4.09131822]
[1749159875285,10.667,2444.3,2444.0,4.09158471]
[1749159875286,10.664,2444.3,2444.0,4.09158471]
[1749159875491,10.664,2444.3,2443.5,20.09235903]
[1749159875492,11.7304,2444.3,2443.8,4.09185253]
[1749159875732,11.7304,2444.3,2443.7,4.09212593]
[1749159875945,14.75524305,2444.3,2443.8,4.09197323]
[1749159876230,14.75524305,2444.3,2443.5,4.09242505]
[1749159876231,4.09131822,2444.2,2443.5,4.09242505]
[1749159876429,6.25258588,2444.1,2442.8,1.5632]
[1749159876740,0.55,2442.9,2441.7,1.5632]
[1749159876897,4.09446881,2442.4,2441.7,5.65866128]
[1749159877277,4.09446881,2442.4,2441.1,1.5076]
[1749159877278,1.5088,2442.2,2441.1,1.5076]
[1749159877416,2.579,2442.1,2441.8,4.09529492]
[1749159877622,1.5088,2442.2,2441.1,1.5076]
[1749159877831,8.842,2442.8,2441.8,1.5654]
[1749159878053,10.649,2442.7,2442.6,4.09398775]
[1749159878231,2.579,2442.7,2442.6,4.09398775]
[1749159878446,10.651,2442.7,2442.6,4.09398775]
[1749159879547,8.842,2442.8,2442.7,4.09383059]
[1749159879776,16.911,2442.8,2442.7,4.09383059]
[1749159880139,8.842,2442.8,2442.7,4.09383059]
[1749159880346,1.6666,2443.3,2442.7,4.09383059]
[1749159880347,2.579,2443.3,2442.7,4.09383059]
[1749159880545,1.5154,2443.8,2442.6,1.592]
[1749159880546,8.074,2443.2,2442.9,16.0]
[1749159880752,8.074,2443.2,2443.1,4.09316032]
[1749159881072,2.579,2443.6,2442.9,16.0]
[1749159881258,8.072,2443.5,2442.9,20.09334417]
[1749159881572,8.072,2443.5,2442.9,20.09345375]
[1749159881873,8.072,2443.5,2442.5,20.09402333]
[1749159882073,8.072,2443.5,2442.5,4.09402333]
[1749159882275,12.16458724,2443.5,2443.0,4.09324087]
[1749159882674,8.072,2443.5,2443.0,4.09324087]
[1749159882877,8.072,2443.5,2443.1,4.09314625]
[1749159883740,12.1645187,2443.5,2443.0,4.09329551]
[1749159883940,9.95556801,2443.5,2442.2,1.5757]
[1749159884140,4.09354089,2442.9,2442.4,4.09420192]
[1749159884350,4.09388804,2442.7,2442.2,4.09462395]
[1749159884549,10.634,2442.8,2442.2,4.09462395]
[1749159884550,10.634,2442.8,2442.6,4.09387897]
[1749159884786,10.634,2442.8,2442.6,4.0939139]
[1749159885086,10.634,2442.8,2442.5,4.09407599]
[1749159885387,2.58,2442.8,2442.0,16.0]
[1749159885540,2.58,2442.8,2442.7,4.09383059]
[1749159885888,10.64,2442.8,2442.7,4.09383059]
[1749159886484,10.639,2442.8,2442.7,4.09383059]
[1749159886695,2.58,2443.3,2442.9,4.09336671]
[1749159886842,2.58,2443.3,2441.8,5.67091535]
[1749159886843,2.58,2443.3,2442.4,16.0]
[1749159887039,2.58,2443.3,2443.2,4.09299279]
[1749159887253,1.5982,2443.6,2443.5,4.09249028]
[1749159887452,2.58,2443.6,2443.5,4.0923982]
[1749159887682,10.623,2443.6,2443.5,4.0923982]
[1749159887896,10.623,2443.6,2443.3,4.09273433]
[1749159888196,2.58,2443.6,2443.5,4.09249028]
[1749159888399,2.58,2444.3,2444.1,4.09131912]
[1749159888580,2.58,2444.3,2444.2,4.09131822]
[1749159888956,10.633,2444.3,2444.1,4.09141184]
[1749159889155,10.633,2444.3,2444.2,4.09131822]
[1749159889596,10.633,2444.3,2444.1,4.09134295]
[1749159890303,10.633,2444.3,2444.0,4.09157915]
[1749159890514,10.633,2444.3,2443.9,4.09179044]
[1749159890797,16.19656913,2444.3,2443.8,4.09190766]
[1749159891026,16.19664219,2444.3,2443.8,4.09186653]
[1749159891221,1.61966422,2444.2,2443.8,4.09186653]
[1749159891377,1.61966422,2444.2,2443.5,4.09243573]
[1749159891583,4.09161998,2444.1,2443.5,4.09236226]
[1749159892077,1.6422,2444.0,2442.9,4.09335016]
[1749159892279,1.6422,2444.0,2442.6,1.5071]
[1749159892582,0.55,2443.7,2442.6,1.5071]
[1749159892785,0.55,2443.7,2442.9,4.09346375]
[1749159892786,4.09275902,2443.4,2442.9,4.09346375]
[1749159893280,8.012,2443.3,2443.2,4.09283499]
[1749159893681,8.012,2443.3,2443.2,4.09299279]
[1749159893682,10.584,2443.3,2443.2,4.09299279]
[1749159894008,8.843,2443.6,2443.4,4.09249841]
[1749159894009,2.579,2443.5,2443.4,4.09249841]
[1749159894204,10.593,2443.5,2443.4,4.09249841]
[1749159895293,8.843,2443.6,2443.5,4.09249028]
[1749159895617,19.423,2443.6,2443.5,4.09249028]
[1749159896393,11.422,2443.6,2443.5,4.09249028]
[1749159896595,1.60165792,2445.3,2444.2,4.09131822]
[1749159896596,2.579,2444.3,2444.2,4.09131822]
[1749159896916,10.571,2444.3,2444.2,4.09131822]
[1749159897279,10.571,2444.3,2443.6,4.09219851]
[1749159897485,10.571,2444.3,2444.0,4.09157437]
[1749159897686,10.571,2444.3,2443.9,4.09173514]
[1749159897906,10.571,2444.3,2443.4,5.62019262]
[1749159897907,2.579,2444.3,2443.5,4.09246859]
[1749159898109,7.991,2444.2,2444.1,4.09148561]
[1749159898308,7.991,2444.2,2444.0,4.09163808]
[1749159898547,7.991,2444.2,2443.0,13.12053247]
[1749159898548,7.991,2444.2,2443.9,4.09177253]
[1749159898827,7.991,2444.1,2443.7,4.09210178]
[1749159899319,7.991,2444.1,2443.8,4.09195954]
[1749159899693,10.3591,2444.7,2443.6,4.0923228]
[1749159900033,4.09144602,2444.2,2443.7,4.09206986]
[1749159900335,1.5957,2444.5,2443.1,7.48010032]
[1749159900488,1.320561,2444.4,2444.0,4.09148697]
[1749159900822,1.320561,2444.4,2443.8,4.0918655]
[1749159900823,4.09115236,2444.3,2443.8,4.0918655]
[1749159900985,4.09151034,2444.1,2443.7,4.09212599]
[1749159901190,8.029,2444.0,2443.7,4.0920631]
[1749159901402,2.579,2443.9,2443.8,4.09198788]
[1749159901725,10.605,2443.9,2443.0,4.09332787]
[1749159901890,10.605,2443.9,2443.7,4.09206276]
[1749159902090,10.605,2443.9,2443.6,4.09224893]
[1749159902748,10.605,2443.9,2443.7,4.09212028]
[1749159903051,10.605,2443.9,2443.0,4.09332787]
[1749159903052,10.605,2443.9,2443.0,16.0]
[1749159903379,10.605,2443.9,2443.5,4.09247727]
[1749159903686,10.605,2443.9,2443.4,4.09249836]
[1749159903687,1.46967887,2443.8,2443.4,4.09249836]
[1749159903979,1.46967887,2443.8,2443.4,4.09259219]
[1749159904181,8.007,2443.7,2442.8,17.6141]
[1749159904481,8.007,2443.7,2443.5,4.09236649]
[1749159904985,8.007,2443.7,2443.4,4.09262752]
[1749159905298,7.997,2443.6,2443.1,4.09299558]
[1749159905588,7.997,2443.6,2443.5,4.09234001]
[1749159906369,7.997,2443.6,2443.5,4.09249028]
[1749159907211,8.7967,2443.6,2443.0,4.09324539]
[1749159907386,4.0927296,2443.4,2442.9,4.09339963]
[1749159907590,5.13343103,2443.5,2442.9,4.09339963]
[1749159907758,4.09281045,2443.4,2442.9,4.09339963]
[1749159907958,1.04087,2443.5,2442.5,4.09416581]
[1749159908160,1.04087,2443.5,2443.1,4.0930062]
[1749159908364,0.983757,2443.4,2443.0,4.09328936]
[1749159908961,5.07644997,2443.4,2443.0,4.09328936]
[1749159909361,0.983757,2443.4,2443.0,4.09328936]
[1749159909593,0.6117192,2443.3,2443.0,4.09328936]
[1749159909854,2.541,2443.2,2443.0,4.09328936]
[1749159910009,7.991,2443.1,2443.0,4.09328936]
[1749159913180,7.991,2443.1,2442.7,4.09369852]
[1749159913365,0.6117192,2443.3,2442.4,5.74990989]
[1749159913606,14.62502515,2443.2,2442.7,4.09371464]
[1749159913808,14.62502515,2443.2,2442.0,4.09485422]
[1749159913809,12.08427599,2443.1,2442.0,1.5346]
[1749159914106,12.08427599,2443.1,2442.0,4.094899]
[1749159914107,4.09422256,2442.5,2442.0,4.094899]
[1749159914408,0.55,2442.9,2441.6,5.63024918]
[1749159914409,10.532,2442.4,2441.6,5.63024918]
[1749159914576,10.532,2442.4,2442.0,4.0949153]
[1749159914767,10.532,2442.4,2441.9,4.09503782]
[1749159914768,10.532,2442.4,2442.1,4.09474093]
[1749159915177,10.532,2442.4,2442.0,4.09499246]
[1749159915364,11.5852,2442.4,2442.1,4.09474471]
[1749159916192,10.532,2442.4,2442.0,4.09491866]
[1749159916394,10.532,2442.4,2442.1,4.09480896]
[1749159916900,1.5863,2442.3,2442.1,4.09480896]
[1749159917294,1.5863,2442.3,2442.2,4.09466874]
[1749159917511,7.994,2442.3,2442.1,4.09475396]
[1749159918386,9.0475,2442.3,2442.1,4.09475396]
[1749159918586,2.541,2442.4,2442.1,4.09475396]
[1749159918587,1.5291,2443.5,2442.1,5.76115396]
[1749159918788,1.5291,2443.5,2442.9,4.09343513]
[1749159918996,4.09287977,2443.3,2442.8,4.09354733]
[1749159919237,12.7554843,2443.2,2442.7,4.09375486]
[1749159919387,8.66248798,2443.2,2442.1,1.6664]
[1749159919817,1.5291,2442.7,2441.8,17.6664]
[1749159920018,2.542,2442.6,2441.4,1.6664]
[1749159920221,4.09447667,2442.4,2441.9,4.09505269]
[1749159920728,7.992,2442.3,2441.9,4.09505269]
[1749159921146,7.992,2442.3,2441.9,4.09508159]
[1749159921295,7.992,2442.3,2441.7,4.09543945]
[1749159921296,12.08650417,2442.3,2441.8,4.09529078]
[1749159921488,7.992,2442.3,2441.9,4.09516083]
[1749159921689,9.61005863,2442.3,2441.6,4.09558705]
[1749159921899,4.09468614,2442.2,2441.7,4.09539458]
[1749159922121,13.7046225,2442.3,2441.8,4.09528054]
[1749159922285,13.70463398,2442.3,2441.8,4.09528054]
[1749159922488,1.77989936,2442.2,2441.8,4.09528054]
[1749159923121,5.87463069,2442.2,2441.7,4.0954479]
[1749159923521,5.87463069,2442.2,2441.6,4.0956705]
[1749159923522,5.87463069,2442.2,2441.8,4.09533009]
[1749159923890,1.77989936,2442.2,2441.8,4.09533009]
[1749159925033,5.87457347,2442.2,2441.7,4.09545633]
[1749159925213,1.31289904,2442.1,2441.8,4.09531387]
[1749159925624,1.31289904,2442.1,2441.4,4.09596944]
[1749159925806,1.31289904,2442.1,2441.8,4.09528584]
[1749159927015,5.4077726,2442.1,2441.1,1.6664]
[1749159927227,4.09534845,2441.8,2441.4,4.09599697]
[1749159927444,10.536,2441.7,2441.4,4.09599697]
[1749159927643,10.536,2441.7,2441.5,4.0957472]
[1749159927980,10.536,2441.7,2441.4,4.09593594]
[1749159927981,11.74288,2441.7,2441.4,4.09593594]
[1749159928128,10.536,2441.7,2441.3,4.09611713]
[1749159928443,10.536,2441.7,2441.0,4.09667999]
[1749159928444,14.63161743,2441.7,2441.2,4.09620643]
[1749159928643,1.0536,2441.6,2441.3,4.09616847]
[1749159929139,1.0536,2441.6,2441.2,4.09626345]
[1749159929760,4.0958514,2441.5,2441.2,16.0]
[1749159929973,1.56852174,2441.5,2441.1,16.0]
[1749159930172,1.56852174,2441.5,2441.1,20.09646807]
[1749159930380,1.56852174,2441.5,2441.2,4.09617938]
[1749159930531,1.56852174,2441.5,2441.1,20.09641986]
[1749159930732,0.67178156,2441.4,2441.1,20.09642984]
[1749159931069,6.29226281,2441.3,2440.9,0.1127522]
[1749159931234,4.09668168,2441.0,2440.9,0.1127522]
[1749159931436,6.63868168,2441.0,2440.9,0.1127522]
[1749159931639,2.542,2441.0,2440.9,0.1127522]
[1749159933280,2.542,2441.0,2440.9,4.20960172]
[1749159933281,10.538,2441.0,2440.9,4.20960172]
[1749159933441,15.68848168,2441.0,2440.9,0.1127522]
[1749159933643,26.72888168,2441.0,2440.9,0.1127522]
[1749159933842,34.62888168,2441.0,2440.9,0.1127522]
[1749159935545,37.09288168,2441.0,2440.9,0.1127522]
[1749159935755,4.09792341,2440.3,2439.8,4.09863333]
[1749159935981,15.04688252,2440.2,2439.3,4.09953364]
[1749159936479,4.50789899,2440.2,2439.7,4.09884824]
[1749159936786,10.539,2440.1,2439.7,4.09884824]
[1749159937093,14.63719939,2440.1,2439.7,4.09884824]
[1749159937241,1.50469917,2440.0,2439.5,4.09908089]
[1749159937575,4.0985424,2439.9,2439.4,4.09928897]
[1749159937774,5.60313861,2440.0,2439.5,4.09919368]
[1749159937941,5.60313861,2440.0,2438.5,5.76489935]
[1749159937942,0.55,2439.8,2438.5,5.76489935]
[1749159938139,4.09938735,2439.4,2438.5,1.6641]
[1749159938366,14.63861409,2439.3,2438.8,4.10026308]
[1749159938580,14.63861409,2439.3,2438.9,4.1002011]
[1749159938581,10.539,2439.3,2438.9,4.1002011]
[1749159939077,10.539,2439.3,2439.0,4.10003236]
[1749159939278,16.10252992,2439.3,2438.7,4.10043815]
[1749159939480,1.6063,2439.2,2438.4,0.2353931]
[1749159939839,12.00284244,2439.3,2439.0,4.1000386]
[1749159940055,12.00284244,2439.3,2438.4,0.2353931]
[1749159940056,1.6063,2439.5,2438.4,4.33644142]
[1749159940257,10.539,2439.4,2439.1,4.09979382]
[1749159940491,8.853,2439.7,2438.4,4.33644142]
[1749159940492,8.853,2439.7,2438.9,1.6299]
[1749159940865,7.997,2439.6,2439.4,4.09924984]
[1749159941056,7.997,2439.6,2439.3,4.09945808]
[1749159941262,7.997,2439.6,2438.9,5.729988]
[1749159941263,7.997,2439.6,2439.2,4.09962345]
[1749159941566,7.997,2439.6,2439.1,4.09976963]
[1749159941772,7.997,2439.6,2438.9,4.10015668]
[1749159941773,2.09489576,2439.5,2438.9,4.10015668]
[1749159941973,2.09489576,2439.5,2439.0,4.09995848]
[1749159941974,6.19414061,2439.5,2439.0,4.09995848]
[1749159942198,7.997,2439.6,2438.8,5.73314611]
[1749159942357,4.09962757,2439.3,2438.8,4.10029047]
[1749159942558,5.65352757,2439.3,2438.8,4.10029047]
[1749159943103,5.65352757,2439.3,2438.4,4.33628796]
[1749159943104,1.5539,2439.3,2438.4,0.2353931]
[1749159943405,0.55,2439.2,2438.4,0.2353931]
[1749159943555,4.10020911,2438.9,2438.4,0.2353931]
[1749159943763,12.09846644,2438.8,2438.4,0.2353931]
[1749159944692,2.543,2439.1,2438.4,0.2353931]
[1749159944693,7.999,2438.7,2438.4,0.2353931]
[1749159945779,4.10088168,2438.5,2438.4,0.2353931]
[1749159945964,4.10088168,2438.5,2437.0,1.6061]
[1749159945965,4.10121806,2438.3,2437.3,4.10278569]
[1749159946162,2.543,2438.2,2437.1,4.10323745]
[1749159946478,2.544,2438.2,2437.3,4.10290075]
[1749159946676,8.026,2438.1,2438.0,4.10163206]
[1749159947290,9.42371817,2438.4,2438.3,4.10121806]
[1749159947291,8.856,2438.4,2438.3,4.10121806]
[1749159947790,16.88,2438.4,2438.3,4.10121806]
[1749159948002,8.856,2438.4,2438.3,4.10121806]
[1749159948303,1.522,2439.0,2438.5,4.10078144]
[1749159948515,8.859,2439.4,2439.1,4.0998729]
[1749159948516,2.544,2439.2,2439.1,4.0998729]
[1749159948810,10.569,2439.2,2438.8,4.10030521]
[1749159949197,10.569,2439.2,2438.8,4.10025294]
[1749159949401,10.569,2439.2,2438.7,4.10054537]
[1749159949402,11.63107652,2439.2,2438.7,4.10046695]
[1749159949715,15.73089249,2439.2,2438.6,4.10059853]
[1749159950018,1.57308925,2439.1,2438.4,1.5724]
[1749159950305,4.65093227,2438.5,2437.9,1.6474]
[1749159950471,4.65093227,2438.5,2437.2,4.1029878]
[1749159950472,4.10123169,2438.3,2437.8,4.10195969]
[1749159951093,4.10143052,2438.2,2437.7,4.1021805]
[1749159951605,4.10143052,2438.2,2437.3,5.64995476]